Workbook

Sheet SD1
A2: رقم الفاتورة | B2: اسم العميل | C2: المبلغ | D2: الخصم | E2: الصافى | F2: المسدد | G2: المتبقى
A3: 285513 | B3: عميل 1 | C3: 15000 | D3: =C3*0.15 -> 2250 | E3: =C3-D3 -> 12750 | F3: =E3*0.65 -> 8287.5 | G3: =E3-F3 -> 4462.5
A4: 285512 | B4: عميل 2 | C4: 15500 | D4: =C4*0.15 -> 2325 | E4: =C4-D4 -> 13175 | F4: =E4*0.65 -> 8563.75 | G4: =E4-F4 -> 4611.25
A5: 285511 | B5: عميل 3 | C5: 16000 | D5: 2400 | E5: 13600 | F5: 8840 | G5: 4760
A6: 285510 | B6: عميل 4 | C6: 16500 | D6: 2475 | E6: 14025 | F6: 9116.25 | G6: 4908.75
A7: 285509 | B7: عميل 5 | C7: 17000 | D7: 2550 | E7: 14450 | F7: 9392.5 | G7: 5057.5
A8: 285508 | B8: عميل 6 | C8: 17500 | D8: 2625 | E8: 14875 | F8: 9668.75 | G8: 5206.25
A9: 285507 | B9: عميل 7 | C9: 18000 | D9: 2700 | E9: 15300 | F9: 9945 | G9: 5355
A10: 285506 | B10: عميل 8 | C10: 18500 | D10: 2775 | E10: 15725 | F10: 10221.25 | G10: 5503.75
A11: 285505 | B11: عميل 9 | C11: 19000 | D11: 2850 | E11: 16150 | F11: 10497.5 | G11: 5652.5
A12: 285504 | B12: عميل 10 | C12: 19500 | D12: 2925 | E12: 16575 | F12: 10773.75 | G12: 5801.25
A13: 285503 | B13: عميل 11 | C13: 20000 | D13: 3000 | E13: 17000 | F13: 11050 | G13: 5950
A14: 285502 | B14: عميل 12 | C14: 20500 | D14: 3075 | E14: 17425 | F14: 11326.25 | G14: 6098.75
A15: 285501 | B15: عميل 13 | C15: 21000 | D15: 3150 | E15: 17850 | F15: 11602.5 | G15: 6247.5
A16: 285500 | B16: عميل 14 | C16: 21500 | D16: 3225 | E16: 18275 | F16: 11878.75 | G16: 6396.25
A17: 285499 | B17: عميل 15 | C17: 22000 | D17: 3300 | E17: 18700 | F17: 12155 | G17: 6545
A18: 285498 | B18: عميل 16 | C18: 22500 | D18: 3375 | E18: 19125 | F18: 12431.25 | G18: 6693.75
A19: 285497 | B19: عميل 17 | C19: 23000 | D19: 3450 | E19: 19550 | F19: 12707.5 | G19: 6842.5
A20: 285496 | B20: عميل 18 | C20: 23500 | D20: 3525 | E20: 19975 | F20: 12983.75 | G20: 6991.25
A21: 285495 | B21: عميل 19 | C21: 24000 | D21: 3600 | E21: 20400 | F21: 13260 | G21: 7140
A22: 285494 | B22: عميل 20 | C22: 24500 | D22: 3675 | E22: 20825 | F22: 13536.25 | G22: 7288.75
A23: 285493 | B23: عميل 21 | C23: 25000 | D23: 3750 | E23: 21250 | F23: 13812.5 | G23: 7437.5
A24: 285492 | B24: عميل 22 | C24: 25500 | D24: 3825 | E24: 21675 | F24: 14088.75 | G24: 7586.25
A25: 285491 | B25: عميل 23 | C25: 26000 | D25: 3900 | E25: 22100 | F25: 14365 | G25: 7735
A26: 285490 | B26: عميل 24 | C26: 26500 | D26: 3975 | E26: 22525 | F26: 14641.25 | G26: 7883.75
A27: 285489 | B27: عميل 25 | C27: 27000 | D27: 4050 | E27: 22950 | F27: 14917.5 | G27: 8032.5
A28: 285488 | B28: عميل 26 | C28: 27500 | D28: 4125 | E28: 23375 | F28: 15193.75 | G28: 8181.25
A29: 285487 | B29: عميل 27 | C29: 28000 | D29: 4200 | E29: 23800 | F29: 15470 | G29: 8330
A30: 285486 | B30: عميل 28 | C30: 28500 | D30: 4275 | E30: 24225 | F30: 15746.25 | G30: 8478.75
A31: 285485 | B31: عميل 29 | C31: 29000 | D31: 4350 | E31: 24650 | F31: 16022.5 | G31: 8627.5
A32: 285484 | B32: عميل 30 | C32: 29500 | D32: 4425 | E32: 25075 | F32: 16298.75 | G32: 8776.25
A33: 285483 | B33: عميل 31 | C33: 30000 | D33: 4500 | E33: 25500 | F33: 16575 | G33: 8925
A34: 285482 | B34: عميل 32 | C34: 30500 | D34: 4575 | E34: 25925 | F34: 16851.25 | G34: 9073.75
A35: 285481 | B35: عميل 33 | C35: 31000 | D35: 4650 | E35: 26350 | F35: 17127.5 | G35: 9222.5
A36: 285480 | B36: عميل 34 | C36: 31500 | D36: 4725 | E36: 26775 | F36: 17403.75 | G36: 9371.25
A37: 285479 | B37: عميل 35 | C37: 32000 | D37: 4800 | E37: 27200 | F37: 17680 | G37: 9520
A38: 285478 | B38: عميل 36 | C38: 32500 | D38: 4875 | E38: 27625 | F38: 17956.25 | G38: 9668.75
A39: 285477 | B39: عميل 37 | C39: 33000 | D39: 4950 | E39: 28050 | F39: 18232.5 | G39: 9817.5
A40: 285476 | B40: عميل 38 | C40: 33500 | D40: 5025 | E40: 28475 | F40: 18508.75 | G40: 9966.25
A41: 285475 | B41: عميل 39 | C41: 34000 | D41: 5100 | E41: 28900 | F41: 18785 | G41: 10115
A42: 285474 | B42: عميل 40 | C42: 34500 | D42: 5175 | E42: 29325 | F42: 19061.25 | G42: 10263.75
A43: 285473 | B43: عميل 41 | C43: 35000 | D43: 5250 | E43: 29750 | F43: 19337.5 | G43: 10412.5
A44: 285472 | B44: عميل 42 | C44: 35500 | D44: 5325 | E44: 30175 | F44: 19613.75 | G44: 10561.25
A45: 285471 | B45: عميل 43 | C45: 36000 | D45: 5400 | E45: 30600 | F45: 19890 | G45: 10710
A46: 285470 | B46: عميل 44 | C46: 36500 | D46: 5475 | E46: 31025 | F46: 20166.25 | G46: 10858.75
A47: 285469 | B47: عميل 45 | C47: 37000 | D47: 5550 | E47: 31450 | F47: 20442.5 | G47: 11007.5
A48: 285468 | B48: عميل 46 | C48: 37500 | D48: 5625 | E48: 31875 | F48: 20718.75 | G48: 11156.25
A49: 285467 | B49: عميل 47 | C49: 38000 | D49: 5700 | E49: 32300 | F49: 20995 | G49: 11305
A50: 285466 | B50: عميل 48 | C50: 38500 | D50: 5775 | E50: 32725 | F50: 21271.25 | G50: 11453.75
A51: 285465 | B51: عميل 49 | C51: 39000 | D51: 5850 | E51: 33150 | F51: 21547.5 | G51: 11602.5
A52: 285464 | B52: عميل 50 | C52: 39500 | D52: 5925 | E52: 33575 | F52: 21823.75 | G52: 11751.25
A53: 285463 | B53: عميل 51 | C53: 40000 | D53: 6000 | E53: 34000 | F53: 22100 | G53: 11900
A54: 285462 | B54: عميل 52 | C54: 40500 | D54: 6075 | E54: 34425 | F54: 22376.25 | G54: 12048.75
A55: 285461 | B55: عميل 53 | C55: 41000 | D55: 6150 | E55: 34850 | F55: 22652.5 | G55: 12197.5
A56: 285460 | B56: عميل 54 | C56: 41500 | D56: 6225 | E56: 35275 | F56: 22928.75 | G56: 12346.25
A57: 285459 | B57: عميل 55 | C57: 42000 | D57: 6300 | E57: 35700 | F57: 23205 | G57: 12495
A58: 285458 | B58: عميل 56 | C58: 42500 | D58: 6375 | E58: 36125 | F58: 23481.25 | G58: 12643.75
A59: 285457 | B59: عميل 57 | C59: 43000 | D59: 6450 | E59: 36550 | F59: 23757.5 | G59: 12792.5
A60: 285456 | B60: عميل 58 | C60: 43500 | D60: 6525 | E60: 36975 | F60: 24033.75 | G60: 12941.25
A61: 285455 | B61: عميل 59 | C61: 44000 | D61: 6600 | E61: 37400 | F61: 24310 | G61: 13090
A62: 285454 | B62: عميل 60 | C62: 44500 | D62: 6675 | E62: 37825 | F62: 24586.25 | G62: 13238.75
A63: 285453 | B63: عميل 61 | C63: 45000 | D63: 6750 | E63: 38250 | F63: 24862.5 | G63: 13387.5
A64: 285452 | B64: عميل 62 | C64: 45500 | D64: 6825 | E64: 38675 | F64: 25138.75 | G64: 13536.25
A65: 285451 | B65: عميل 63 | C65: 46000 | D65: 6900 | E65: 39100 | F65: 25415 | G65: 13685
A66: 285450 | B66: عميل 64 | C66: 46500 | D66: 6975 | E66: 39525 | F66: 25691.25 | G66: 13833.75
A67: 285449 | B67: عميل 65 | C67: 47000 | D67: 7050 | E67: 39950 | F67: 25967.5 | G67: 13982.5
A68: 285448 | B68: عميل 66 | C68: 47500 | D68: =C68*0.15 -> 7125 | E68: =C68-D68 -> 40375 | F68: =E68*0.65 -> 26243.75 | G68: =E68-F68 -> 14131.25
A69: 285447 | B69: عميل 67 | C69: 48000 | D69: 7200 | E69: 40800 | F69: 26520 | G69: 14280
A70: 285446 | B70: عميل 68 | C70: 48500 | D70: 7275 | E70: 41225 | F70: 26796.25 | G70: 14428.75
A71: 285445 | B71: عميل 69 | C71: 49000 | D71: 7350 | E71: 41650 | F71: 27072.5 | G71: 14577.5
A72: 285444 | B72: عميل 70 | C72: 49500 | D72: 7425 | E72: 42075 | F72: 27348.75 | G72: 14726.25
A73: 285443 | B73: عميل 71 | C73: 50000 | D73: 7500 | E73: 42500 | F73: 27625 | G73: 14875
A74: 285442 | B74: عميل 72 | C74: 50500 | D74: 7575 | E74: 42925 | F74: 27901.25 | G74: 15023.75
A75: 285441 | B75: عميل 73 | C75: 51000 | D75: 7650 | E75: 43350 | F75: 28177.5 | G75: 15172.5
A76: 285440 | B76: عميل 74 | C76: 51500 | D76: 7725 | E76: 43775 | F76: 28453.75 | G76: 15321.25
A77: 285439 | B77: عميل 75 | C77: 52000 | D77: 7800 | E77: 44200 | F77: 28730 | G77: 15470
A78: 285438 | B78: عميل 76 | C78: 52500 | D78: 7875 | E78: 44625 | F78: 29006.25 | G78: 15618.75
A79: 285437 | B79: عميل 77 | C79: 53000 | D79: 7950 | E79: 45050 | F79: 29282.5 | G79: 15767.5
A80: 285436 | B80: عميل 78 | C80: 53500 | D80: 8025 | E80: 45475 | F80: 29558.75 | G80: 15916.25
A81: 285435 | B81: عميل 79 | C81: 54000 | D81: 8100 | E81: 45900 | F81: 29835 | G81: 16065
A82: 285434 | B82: عميل 80 | C82: 54500 | D82: 8175 | E82: 46325 | F82: 30111.25 | G82: 16213.75
A83: 285433 | B83: عميل 81 | C83: 55000 | D83: 8250 | E83: 46750 | F83: 30387.5 | G83: 16362.5
A84: 285432 | B84: عميل 82 | C84: 55500 | D84: 8325 | E84: 47175 | F84: 30663.75 | G84: 16511.25
A85: 285431 | B85: عميل 83 | C85: 56000 | D85: 8400 | E85: 47600 | F85: 30940 | G85: 16660
A86: 285430 | B86: عميل 84 | C86: 56500 | D86: 8475 | E86: 48025 | F86: 31216.25 | G86: 16808.75
A87: 285429 | B87: عميل 85 | C87: 57000 | D87: 8550 | E87: 48450 | F87: 31492.5 | G87: 16957.5
A88: 285428 | B88: عميل 86 | C88: 57500 | D88: 8625 | E88: 48875 | F88: 31768.75 | G88: 17106.25
A89: 285427 | B89: عميل 87 | C89: 58000 | D89: 8700 | E89: 49300 | F89: 32045 | G89: 17255
A90: 285426 | B90: عميل 88 | C90: 58500 | D90: 8775 | E90: 49725 | F90: 32321.25 | G90: 17403.75
A91: 285425 | B91: عميل 89 | C91: 59000 | D91: 8850 | E91: 50150 | F91: 32597.5 | G91: 17552.5
A92: 285424 | B92: عميل 90 | C92: 59500 | D92: 8925 | E92: 50575 | F92: 32873.75 | G92: 17701.25
A93: 285423 | B93: عميل 91 | C93: 60000 | D93: 9000 | E93: 51000 | F93: 33150 | G93: 17850
A94: 285422 | B94: عميل 92 | C94: 60500 | D94: 9075 | E94: 51425 | F94: 33426.25 | G94: 17998.75
A95: 285421 | B95: عميل 93 | C95: 61000 | D95: 9150 | E95: 51850 | F95: 33702.5 | G95: 18147.5
A96: 285420 | B96: عميل 94 | C96: 61500 | D96: 9225 | E96: 52275 | F96: 33978.75 | G96: 18296.25
A97: 285419 | B97: عميل 95 | C97: 62000 | D97: 9300 | E97: 52700 | F97: 34255 | G97: 18445
A98: 285418 | B98: عميل 96 | C98: 62500 | D98: 9375 | E98: 53125 | F98: 34531.25 | G98: 18593.75
A99: 285417 | B99: عميل 97 | C99: 63000 | D99: 9450 | E99: 53550 | F99: 34807.5 | G99: 18742.5
A100: 285416 | B100: عميل 98 | C100: 63500 | D100: 9525 | E100: 53975 | F100: 35083.75 | G100: 18891.25
A101: 285415 | B101: عميل 99 | C101: 64000 | D101: 9600 | E101: 54400 | F101: 35360 | G101: 19040
A102: 285414 | B102: عميل 100 | C102: 64500 | D102: 9675 | E102: 54825 | F102: 35636.25 | G102: 19188.75
A103: 285413 | B103: عميل 101 | C103: 65000 | D103: 9750 | E103: 55250 | F103: 35912.5 | G103: 19337.5
A104: 285412 | B104: عميل 102 | C104: 65500 | D104: 9825 | E104: 55675 | F104: 36188.75 | G104: 19486.25
A105: 285411 | B105: عميل 103 | C105: 66000 | D105: 9900 | E105: 56100 | F105: 36465 | G105: 19635
A106: 285410 | B106: عميل 104 | C106: 66500 | D106: 9975 | E106: 56525 | F106: 36741.25 | G106: 19783.75
A107: 285409 | B107: عميل 105 | C107: 67000 | D107: 10050 | E107: 56950 | F107: 37017.5 | G107: 19932.5
A108: 285408 | B108: عميل 106 | C108: 67500 | D108: 10125 | E108: 57375 | F108: 37293.75 | G108: 20081.25
A109: 285407 | B109: عميل 107 | C109: 68000 | D109: 10200 | E109: 57800 | F109: 37570 | G109: 20230
A110: 285406 | B110: عميل 108 | C110: 68500 | D110: 10275 | E110: 58225 | F110: 37846.25 | G110: 20378.75
A111: 285405 | B111: عميل 109 | C111: 69000 | D111: 10350 | E111: 58650 | F111: 38122.5 | G111: 20527.5
A112: 285404 | B112: عميل 110 | C112: 69500 | D112: 10425 | E112: 59075 | F112: 38398.75 | G112: 20676.25
A113: 285403 | B113: عميل 111 | C113: 70000 | D113: 10500 | E113: 59500 | F113: 38675 | G113: 20825
A114: 285402 | B114: عميل 112 | C114: 70500 | D114: 10575 | E114: 59925 | F114: 38951.25 | G114: 20973.75
A115: 285401 | B115: عميل 113 | C115: 71000 | D115: 10650 | E115: 60350 | F115: 39227.5 | G115: 21122.5
A116: 285400 | B116: عميل 114 | C116: 71500 | D116: 10725 | E116: 60775 | F116: 39503.75 | G116: 21271.25
A117: 285399 | B117: عميل 115 | C117: 72000 | D117: 10800 | E117: 61200 | F117: 39780 | G117: 21420
A118: 285398 | B118: عميل 116 | C118: 72500 | D118: 10875 | E118: 61625 | F118: 40056.25 | G118: 21568.75
A119: 285397 | B119: عميل 117 | C119: 73000 | D119: 10950 | E119: 62050 | F119: 40332.5 | G119: 21717.5
A120: 285396 | B120: عميل 118 | C120: 73500 | D120: 11025 | E120: 62475 | F120: 40608.75 | G120: 21866.25
A121: 285395 | B121: عميل 119 | C121: 74000 | D121: 11100 | E121: 62900 | F121: 40885 | G121: 22015
A122: 285394 | B122: عميل 120 | C122: 74500 | D122: 11175 | E122: 63325 | F122: 41161.25 | G122: 22163.75
A123: 285393 | B123: عميل 121 | C123: 75000 | D123: 11250 | E123: 63750 | F123: 41437.5 | G123: 22312.5
A124: 285392 | B124: عميل 122 | C124: 75500 | D124: 11325 | E124: 64175 | F124: 41713.75 | G124: 22461.25
